fUSD/lending_fUSD_20240103
["ID","MTS","AMOUNT","RATE_DAILY","PERIOD"]
[310004952,1704283963202,-899.62,0.00032876,2]
[310004953,1704283963214,-500.0,0.00032876,2]
[310004954,1704283963225,-298.42431932,0.00032876,2]
[310004955,1704283963236,-500.0,0.00032876,2]
[310004956,1704283963247,-500.0,0.00032876,2]
[310004957,1704283963259,-899.62,0.00032876,2]
[310004958,1704283963270,-382.23,0.00032876,2]
[310004959,1704283963282,-429.16903402,0.00032876,2]
[310004960,1704283963294,-228.60617849,0.00032876,2]
[310004961,1704283963305,-500.0,0.00032876,2]
[310004962,1704283963316,-78336.36677662,0.0003488,3]
[310004963,1704283963330,-11860.0001,0.0003488,3]
[310004964,1704283963343,-9160.0,0.0003488,3]
[310004965,1704283963357,-17475.2,0.0003488,3]
[310004966,1704283963370,-43296.0,0.0003488,3]
[310004967,1704283963383,-4060.736708,0.0003488,3]
[310004968,1704283963453,-1760.94594392,0.00029998,2]
[310004969,1704283963466,-150.0,0.00032629,2]
[310004970,1704283963477,-150.0,0.00032675,2]
[310004971,1704283963488,-150.0,0.00032699,2]
[310004972,1704283963499,-150.0,0.00032796,2]
[310004973,1704283963509,-150.0,0.00032799,2]
[310004974,1704283963520,-1500.0,0.0003287,2]
[310004975,1704283963533,-777.25021832,0.00032876,2]
[310004976,1704283963551,-122.36978168,0.00032876,2]
[310004977,1704283963562,-500.0,0.00032876,2]
[310004978,1704283963573,-899.62,0.00032876,2]
[310004979,1704283963584,-9549.21021832,0.0003488,3]
[310004980,1704283963601,-12639.3886858,0.0003488,3]
[310004981,1704283963616,-3090.32308473,0.0003488,3]
[310004982,1704283963630,-798.105,0.0003488,3]
[310004983,1704283963645,-2276.6744,0.0003488,3]
[310004984,1704283963658,-523.83523838,0.0003488,3]
[310004985,1704283963673,-18400.12948019,0.0003488,3]
[310004986,1704283963691,-10080.47736096,0.0003488,3]
[310004987,1704283963729,-566.08677121,0.0003488,3]
[310004988,1704283963742,-1835.66501782,0.0003488,3]
[310004989,1704283963756,-1850.58227869,0.0003488,3]
[310004990,1704283963770,-3127.04243696,0.0003488,3]
[310004991,1704283963784,-2803.3574013,0.0003488,3]
[310004992,1704283963798,-2054.64182111,0.0003488,3]
[310004993,1704283963812,-662.25391874,0.0003488,3]
[310004994,1704283963825,-501.77862702,0.0003488,3]
[310004995,1704283963839,-820.0,0.0003488,3]
[310004996,1704283963853,-250.79,0.0003488,3]
[310004997,1704283963869,-880.0,0.0003488,3]
[310004998,1704283963883,-1846.4,0.0003488,3]
[310004999,1704283963896,-810.635578,0.0003488,3]
[310005000,1704283963912,-980.4,0.0003488,3]
[310005001,1704283963926,-1909.180055,0.0003488,3]
[310005002,1704283963940,-1910.73840274,0.0003488,3]
[310005003,1704283963953,-805.78600196,0.0003488,3]
[310005004,1704283963967,-26498.06536981,0.0003488,3]
[310005005,1704283963981,-1557.20923855,0.0003488,3]
[310005006,1704283963996,-4081.83513579,0.0003488,3]
[310005007,1704283964010,-4442.59113869,0.0003488,3]
[310005008,1704283964024,-4328.6972,0.0003488,3]
[310005009,1704283964040,-1756.755,0.0003488,3]
[310005010,1704283964157,-2023.04493856,0.000319,14]
[310005011,1704283964168,-276.3364,0.00032477,2]
[310005012,1704283964179,-150.0,0.00032607,2]
[310005013,1704283964189,-1500.0,0.0003262,2]
[310005014,1704283964200,-150.0,0.00032669,2]
[310005015,1704283964211,-150.0,0.00032712,2]
[310005016,1704283964222,-150.0,0.00032733,2]
[310005017,1704283964233,-1500.0,0.00032773,2]
[310005018,1704283964245,-1500.0,0.00032779,2]
[310005019,1704283964255,-150.0,0.00032821,2]
[310005020,1704283964266,-150.0,0.00032836,2]
[310005021,1704283964277,-807.81866144,0.00032838,2]
[310005022,1704283964294,-692.18133856,0.00032838,2]
[310005023,1704283964306,-1452.80065749,0.00032843,2]
[310005024,1704283964318,-150.0,0.0003285,2]
[310005025,1704283964328,-1500.0,0.00032867,2]
[310005026,1704283964339,-500.0,0.00032876,2]
[310005027,1704283964350,-899.62,0.00032876,2]
[310005028,1704283964360,-899.68200534,0.00032876,2]
[310005029,1704283964372,-79.88399762,0.00032876,2]
[310005030,1704283964387,-420.11600238,0.00032876,2]
[310005031,1704283964398,-5879.88397762,0.0003488,3]
[310005032,1704283964412,-489.262446,0.0003488,3]
[310005033,1704283964426,-18681.0,0.0003488,3]
[310005034,1704283964440,-473.17452073,0.0003488,3]
[310005035,1704283964454,-559.3,0.0003488,3]
[310005036,1704283964624,-155.965971,0.00027598,2]
[310005037,1704283964636,-2177.5299903,0.00032,14]
[310005038,1704283964648,-150.0,0.00032609,2]
[310005039,1704283964660,-150.0,0.00032626,2]
[310005040,1704283964671,-201.54708728,0.00032629,2]
[310005041,1704283964683,-150.0,0.00032652,2]
[310005042,1704283964698,-150.0,0.00032666,2]
[310005043,1704283964709,-150.0,0.00032758,2]
[310005044,1704283964720,-150.0,0.00032786,2]
[310005045,1704283964733,-150.0,0.00032797,2]
[310005046,1704283964744,-150.0,0.00032797,2]
[310005047,1704283964756,-831.26,0.000328,10]
[310005048,1704283964768,-150.0,0.00032803,2]
[310005049,1704283964779,-150.0,0.00032811,2]
[310005050,1704283964794,-150.0,0.00032821,2]
[310005051,1704283964804,-150.0,0.00032852,2]
[310005052,1704283964816,-150.0,0.00032863,2]
[310005053,1704283964827,-150.0,0.00032874,2]
[310005054,1704283964838,-500.0,0.00032876,2]
[310005055,1704283964851,-500.0,0.00032876,2]
[310005056,1704283964862,-500.0,0.00032876,2]
[310005057,1704283964873,-500.0,0.00032876,2]
[310005058,1704283964884,-500.0,0.00032876,2]
[310005059,1704283964896,-500.0,0.00032876,2]
[310005060,1704283964907,-5000.0,0.000345,2]
[310005061,1704283964918,-174889.52931127,0.0003488,3]
[310005062,1704283964929,-981.12661,0.0003488,2]
[310005063,1704283964939,-500.0,0.0003489,2]
[310005064,1704283964950,-342.68637153,0.00034898,10]
[310005065,1704283964963,-151.40103,0.00034898,2]
[310005066,1704283964974,-500.0,0.00034899,4]
[310005067,1704283964987,-500.0,0.00034899,4]
[310005068,1704283964998,-500.0,0.00034899,4]
[310005069,1704283965008,-288.17093439,0.00034899,4]
[310005070,1704283965019,-500.0,0.00034899,2]
[310005071,1704283965029,-500.0,0.00034899,2]
[310005072,1704283965042,-537.19378458,0.00034899,2]
[310005073,1704283965053,-487.74738292,0.000349,4]
[310005074,1704283965064,-251424.60354541,0.000349,2]
[310005075,1704283965078,-1200.0,0.000349,2]
[310005076,1704283965091,-3933.1031648,0.000349,2]
[310005077,1704283965144,-693.17182333,0.00028798,2]
[310005078,1704283965417,226.75955369,0.00021,2]
[310005079,1704283965767,993.27147135,0.00021,2]
[310005080,1704283965975,285.63741791,0.00021,2]
[310005081,1704283966387,2004.46273701,0.00021,2]
[310005082,1704283966431,1140843.10111532,0.00021,2]
[310005083,1704283967185,196.03271932,0.00020999,2]
[310005084,1704283967522,364.03356213,0.0003,120]
[310005085,1704283967650,2934.91275476,0.00020999,2]
[310005086,1704283967709,685.38563731,0.00020999,2]
[310005087,1704283968083,361.30964358,0.00020999,2]
[310005088,1704283969430,182.99204446,0.00020999,2]
[310005089,1704283969833,367.51880897,0.00020998,2]
[310005090,1704283969915,526.21890816,0.00020998,2]
[310005091,1704283970019,2250.10658033,0.00020998,2]
[310005092,1704283970168,360.79284327,0.00016798,2]
[310005093,1704283970502,523.02257823,0.00020998,2]
[310005094,1704283970628,471.9154513,0.00021,2]
[310005095,1704283970806,1814.12186031,0.00020998,2]
[310005096,1704283972214,387.83002766,0.000207,2]
[310005097,1704283973851,340.73627309,0.00016797,2]
[310005098,1704283974642,1799.97007044,0.00020997,2]
[310005099,1704283974691,12000.0,0.00020997,2]
[310005100,1704283974781,155.0,0.00020998,2]
[310005101,1704283974948,4887.03964735,0.00020997,2]
[310005102,1704283975382,2162.16,0.00020699,2]
[310005103,1704283976295,2129.35238662,0.00020996,2]
[310005104,1704284014978,155.0,0.00020996,2]
[310005105,1704284021076,540.48721601,0.00020996,2]
[310005106,1704284022842,65564.12600224,0.00020996,2]
[310005107,1704284023368,155.0,0.00020996,2]
[310005108,1704284025588,155.0,0.00020996,2]
[310005109,1704284026382,882.64748262,0.00020996,2]
[310005110,1704284027155,4788.41783534,0.00016797,2]
[310005111,1704284027898,5318.97745046,0.00020996,2]
[310005112,1704284028026,155.0,0.00020996,2]
[310005113,1704284028976,208.55261342,0.00020996,2]
[310005114,1704284030457,804.82083743,0.00020996,15]
[310005115,1704284030755,581.00194666,0.00020996,2]
[310005116,1704284030987,281.95610178,0.00020996,2]
[310005117,1704284031080,520.00185062,0.00020996,2]
[310005118,1704284033456,401.16267658,0.00020366,2]
[310005119,1704284034954,270.94497981,0.00020996,15]
[310005120,1704284035290,254.81984417,0.00020996,2]
[310005121,1704284035503,542.69342556,0.00020996,2]
[310005122,1704284038106,535.77828702,0.00020996,2]
[310005123,1704284040079,155.58295263,0.00020996,2]
[310005124,1704284041268,42084.51791368,0.00020996,2]
[310005125,1704284043377,197.4084555,0.00020996,2]
[310005126,1704284044397,617.60518054,0.00020996,2]
[310005127,1704284046344,185.97,0.00028153,120]
[310005128,1704284047119,521.85404499,0.00020996,2]
[310005129,1704284047166,1595.0295242,0.00016797,2]
[310005130,1704284048764,155.0,0.00020996,2]
[310005131,1704284049001,282.77974198,0.00020996,2]
[310005132,1704284049440,351.51513522,0.00020366,2]
[310005133,1704284051186,248.37394867,0.00020996,2]
[310005134,1704284053574,542.69342556,0.00020996,2]
[310005135,1704284053868,844.28526169,0.00020996,2]
[310005136,1704284058368,844.28526169,0.00020996,2]
[310005137,1704284061573,175.85196232,0.00020996,2]
[310005138,1704284074952,270.94497981,0.00020996,15]
[310005139,1704284075403,280.52959928,0.00020996,2]
[310005140,1704284090365,844.28526169,0.00020996,2]
[310005141,1704284095743,-5000.0,0.00024018,2]
[310005142,1704284095768,-999.99,0.00024019,2]
[310005143,1704284095793,-150.99,0.00024019,2]
[310005144,1704284095820,-1244.4653011,0.00025,2]
[310005145,1704284095843,-1875.7,0.00025,2]
[310005146,1704284095866,-800.52,0.00025,2]
[310005147,1704284095892,-931.13114601,0.00026986,2]
[310005148,1704284095915,-678.64,0.00026987,2]
[310005149,1704284095937,-244.41459564,0.00027,2]
[310005150,1704284095962,-74.14895725,0.00027088,2]
[310005151,1704284098957,186.17716464,0.00020996,15]
[310005152,1704284108365,846.08687433,0.00020996,2]
[310005153,1704284110980,-207.03104275,0.00027088,2]
[310005154,1704284111002,-3181.30577157,0.00027396,2]
[310005155,1704284111026,-278.56,0.00027397,2]
[310005156,1704284111049,-250.0,0.00027397,2]
[310005157,1704284111070,-799.44,0.000274,2]
[310005158,1704284111092,-1875.7,0.000274,2]
[310005159,1704284111115,-519.7,0.000276,2]
[310005160,1704284111138,-305.42,0.000276,2]
[310005161,1704284111354,2582.84318568,0.00027399,2]
[310005214,1704284370332,3235.0,0.00029,30]
[310005223,1704284426659,598.96054017,0.00021,2]
[310005224,1704284428260,446.17403311,0.00023144,2]
[310005225,1704284444127,195.97504568,0.00021278,2]
[310005226,1704284445395,-155.0,0.00023909,2]
[310005227,1704284445419,-1845.0,0.00023909,2]
[310005228,1704284446117,-2000.0,0.00023909,2]
[310005229,1704284446488,-2000.0,0.00023909,2]
[310005230,1704284447137,-2000.0,0.00023909,2]
[310005231,1704284447685,-2000.0,0.00023909,2]
[310005232,1704284448324,-680.07510932,0.00023909,2]
[310005233,1704284448348,-1319.92489068,0.00023909,2]
[310005234,1704284448532,-2000.0,0.00023909,2]
[310005235,1704284448902,-1300.6161728,0.00023909,2]
[310005236,1704284448926,-699.3838272,0.0002391,2]
[310005237,1704284449344,-2000.0,0.0002391,2]
[310005238,1704284449811,-575.64097823,0.0002391,2]
[310005239,1704284449835,-1424.35902177,0.0002391,2]
[310005240,1704284450217,-2000.0,0.0002391,2]
[310005241,1704284450796,-2000.0,0.0002391,2]
[310005242,1704284452462,-2000.0,0.00023908,2]
[310005243,1704284452937,-605.87309653,0.00023908,2]
[310005244,1704284452960,-159.1754574,0.00023908,2]
[310005245,1704284452982,-1234.95144607,0.0002391,2]
[310005246,1704284453475,-2000.0,0.0002391,2]
[310005247,1704284454684,-2000.0,0.0002391,2]
[310005248,1704284455254,-2000.0,0.0002391,2]
[310005249,1704284455886,-2000.0,0.0002391,2]
[310005250,1704284456440,-2000.0,0.0002391,2]
[310005251,1704284457017,-2000.0,0.0002391,2]
[310005252,1704284460146,485434.15101169,0.00021278,2]
[310005253,1704284460183,1089.97606837,0.00021278,2]
[310005254,1704284460213,1629.45040798,0.00021278,2]
[310005255,1704284460239,1629.45040798,0.00021278,2]
[310005256,1704284460266,1629.45040798,0.00021278,2]
[310005257,1704284460291,1629.45040798,0.00021278,2]
[310005258,1704284460317,1629.45040798,0.00021278,2]
[310005259,1704284460342,1629.45040798,0.00021278,2]
[310005260,1704284460364,2199.1851339,0.00021278,2]
[310005261,1704284460390,5006.33818439,0.00021278,2]
[310005262,1704284460413,5006.33818439,0.00021278,2]
[310005263,1704284460439,5006.33818439,0.00021278,2]
[310005264,1704284460462,5006.33818439,0.00021278,2]
[310005265,1704284460491,622317.73371592,0.00021278,2]
[310005266,1704284461046,608.0657442,0.00021278,2]
[310005267,1704284464928,1030.51455742,0.00021278,2]
[310005268,1704284473038,596.4681545,0.00021278,2]
[310005269,1704284476150,1140843.10111532,0.00021278,2]
[310005270,1704284476936,354.05394584,0.00021278,2]
[310005271,1704284486187,253.83756432,0.00022916,2]
[310005272,1704284487084,3804.61176821,0.00021278,2]
[310005273,1704284490997,359.77442061,0.00019126,2]
[310005274,1704284498371,3181.30577157,0.00022949,2]
[310005275,1704284500140,653845.07977806,0.00021278,2]
[310005276,1704284518373,1005.75164765,0.00022947,2]
[310005282,1704284602889,200.0,0.00022903,2]
[310005283,1704284637720,550.7,0.00021822,2]
[310005284,1704284645538,401.63453828,0.00022216,2]
[310005285,1704284658827,170.83,0.00019296,2]
[310005286,1704284676169,900.64436974,0.00022903,2]
[310005287,1704284681233,205.57147773,0.00022903,2]
[310005288,1704284692160,445.90233337,0.00021167,2]
[310005289,1704284702199,167.62,0.00022877,2]
[310005290,1704284709080,250.0,0.00022877,2]
[310005291,1704284722167,163.03,0.00023012,2]
[310005292,1704284725284,172.883259,0.0002274,2]
[310005293,1704284733233,294.6,0.00022715,10]
[310005306,1704284751946,200.0,0.00022609,2]
[310005307,1704284761414,150.0,0.00022496,15]
[310005308,1704284776569,500.0,0.00022585,2]
[310005309,1704284779003,23900.0,0.00022534,2]
[310005311,1704284791023,2000.0,0.00022485,2]
[310005312,1704284791146,150.3,0.00022485,2]
[310005313,1704284791474,150.3,0.00022646,2]
[310005314,1704284791698,150.3,0.00022807,2]
[310005315,1704284792060,150.3,0.00022967,2]
[310005317,1704284825435,1364.25,0.00022484,2]
[310005318,1704284826326,159.02,0.00022709,2]
[310005347,1704284839148,238.52,0.00022446,2]
[310005349,1704284839752,9488.88,0.00022446,2]
[310005350,1704284839966,400.0,0.00022446,2]
[310005351,1704284842490,500.0,0.00022446,2]
[310005362,1704284846190,252.78,0.0002233,2]
[310005363,1704284865274,171.89,0.0002231,2]
[310005364,1704284877260,200.0,0.00022315,2]
[310005365,1704284878353,4988.11,0.00022315,2]
[310005366,1704284906103,1385.32265919,0.00022963,2]
[310005367,1704284907197,478.74860988,0.00020516,2]
[310005368,1704284911837,1520.26,0.00022339,2]
[310005370,1704284913301,182.07989329,0.0002305,2]
[310005371,1704284913797,764.35468494,0.0002305,2]
[310005372,1704284915799,2132.6911642,0.0002305,2]
[310005373,1704284916281,2771.73067757,0.0002305,2]
[310005374,1704284916682,547.80678023,0.0002305,2]
[310005375,1704284917007,280.27668862,0.0002305,2]
[310005376,1704284917586,41019.97425161,0.0002305,2]
[310005377,1704284919069,361.05118527,0.0002305,2]
[310005378,1704284920116,155.0,0.0002305,2]
[310005379,1704284920199,155.0,0.0002305,2]
[310005380,1704284920814,937.8219451,0.0002305,2]
[310005381,1704284921117,217.28450417,0.0002305,2]
[310005382,1704284922513,269.95716749,0.0002305,2]
[310005383,1704284922747,383.42158832,0.00023049,2]
[310005384,1704284926339,252.12148909,0.0002305,2]
[310005385,1704284926519,196.30617543,0.0002305,2]
[310005386,1704284928032,214.47459225,0.0002305,2]
[310005387,1704284928405,1345.84467283,0.00022129,2]
[310005388,1704284930907,5675.62947869,0.0002305,2]
[310005389,1704284932029,627.1116,0.00023049,2]
[310005390,1704284932063,697.06047486,0.00023049,2]
[310005391,1704284932399,248.23683979,0.00023049,2]
[310005392,1704284933759,18956.58157169,0.0002305,2]
[310005393,1704284935671,3613.76151731,0.0002305,2]
[310005394,1704284936568,155.0,0.0002305,2]
[310005395,1704284937206,5261.61661609,0.0002305,2]
[310005397,1704284938945,16713.83662006,0.0002305,2]
[310005398,1704284939027,280.14979655,0.0002282,2]
[310005399,1704284940212,277.96277619,0.0002305,2]
[310005400,1704284940349,416.76204987,0.0002305,2]
[310005401,1704284940766,309.16657707,0.0002305,2]
[310005402,1704284942115,586.0,0.0002305,2]
[310005403,1704284942482,251.3196436,0.00022935,15]
[310005404,1704284943533,219.48823654,0.0002305,2]
[310005405,1704284944554,722.60032246,0.0002305,2]
[310005406,1704284945761,19022.70383479,0.0002305,2]
[310005407,1704284945850,11645.27960351,0.0002305,2]
[310005408,1704284946578,10525.07510932,0.0002305,2]
[310005409,1704284946852,3023.42825364,0.0002305,2]
[310005410,1704284948029,164.41285277,0.0002305,2]
[310005411,1704284948336,214.96212171,0.0002305,2]
[310005412,1704284948405,208.68559364,0.0002305,2]
[310005413,1704284948898,213.55247323,0.0002305,2]
[310005418,1704284950245,429.36757461,0.0002305,2]
[310005420,1704284951677,3613.76151731,0.0002305,2]
[310005433,1704284952567,6418.11723431,0.0002305,2]
[310005435,1704284952601,221.08000617,0.0002305,2]
[310005445,1704284952873,4252.53898186,0.0002305,2]
[310005459,1704284954342,416.76204987,0.00023049,2]
[310005461,1704284954732,6314.2388,0.00022966,14]
[310005462,1704284954763,207.36009217,0.0002305,2]
[310005464,1704284955292,527.54543763,0.0002305,2]
[310005466,1704284957209,3178.93320891,0.0002305,2]
[310005468,1704284958874,300.43586721,0.0002305,2]
[310005469,1704284960003,173.49916985,0.0002305,2]
[310005471,1704284960207,157.95006801,0.0002305,2]
[310005472,1704284961853,4260.35639289,0.0002305,2]
[310005473,1704284962512,157.04252938,0.0002305,2]
[310005475,1704284962589,5085.7186719,0.0002305,2]
[310005476,1704284962685,207.9220019,0.0002305,2]
[310005478,1704284963349,269.42884155,0.0002305,2]
[310005481,1704284966580,1889.54778276,0.0002305,2]
[310005484,1704284968020,155.0,0.0002305,2]
[310005485,1704284968736,311.00740437,0.0002305,2]
[310005486,1704284969680,2832.64645991,0.0002305,2]
[310005487,1704284970185,234.89015367,0.0002305,2]
[310005489,1704284972779,620.21196217,0.0002305,2]
[310005490,1704284973296,527.54543763,0.0002305,2]
[310005492,1704284973996,258.8174582,0.0002305,2]
[310005495,1704284976444,416.76204987,0.0002305,2]
[310005498,1704284978417,157.04252938,0.0002305,2]
[310005499,1704284978686,323.4839241,0.0002305,2]
[310005501,1704284979471,695.52274718,0.00023049,2]
[310005503,1704284981757,220.37171058,0.0002305,2]
[310005506,1704284984180,234.89015367,0.0002305,2]
[310005507,1704284984327,764.35468494,0.0002305,2]
[310005508,1704284985409,5000.0,0.0002305,2]
[310005509,1704284986026,292.42178579,0.0002305,2]
[310005511,1704284988778,619.96222449,0.00022128,2]
[310005513,1704284990127,217.28450417,0.0002305,2]
[310005514,1704284990395,4473.72062021,0.0002305,2]
[310005516,1704284991013,2263.96943386,0.0002305,2]
[310005518,1704284991288,485.78743976,0.0002305,2]
[310005521,1704284992372,221.09206895,0.0002305,2]
[310005522,1704284992911,931.13114601,0.0002305,2]
[310005525,1704284998416,157.09009441,0.0002305,2]
[310005526,1704284999073,252.12148909,0.0002305,2]
[310005527,1704284999466,338.0963227,0.0002305,2]
[310005528,1704284999760,202.60729845,0.0002305,2]
[310005530,1704285000350,545.50088884,0.0002305,2]
[310005532,1704285002177,238.10960476,0.0002305,2]
[310005533,1704285002580,150.0,0.0002305,2]
[310005534,1704285002697,150.0,0.0002305,2]
[310005535,1704285002745,150.0,0.0002305,2]
[310005536,1704285002917,150.0,0.0002305,2]
[310005537,1704285003150,150.0,0.0002305,2]
[310005538,1704285003359,253.11754624,0.0002305,2]
[310005539,1704285004413,1850.80818134,0.0002305,2]
[310005540,1704285005447,3999.64784293,0.0002305,2]
[310005541,1704285008138,200.25505775,0.0002305,2]
[310005543,1704285008907,607.3061815,0.0002305,2]
[310005544,1704285009079,2263.96943386,0.0002305,2]
[310005547,1704285016846,174.59758256,0.0002305,2]
[310005548,1704285020080,385.04441741,0.00023059,10]
[310005550,1704285020612,-150.0,0.00023051,2]
[310005551,1704285020652,-1179.63375551,0.00023051,2]
[310005552,1704285020682,-2293.55284014,0.00023051,2]
[310005553,1704285020707,-307.83148272,0.00023051,2]
[310005554,1704285020732,-245.54211778,0.00023051,2]
[310005555,1704285020755,-360.17751082,0.00023051,2]
[310005556,1704285020780,-155.95191101,0.00023051,2]
[310005557,1704285020805,-430.12467534,0.00023051,2]
[310005558,1704285020829,-1141.28374699,0.00023051,2]
[310005559,1704285020853,-251.79727683,0.00023051,2]
[310005560,1704285020877,-211.57994505,0.00023051,2]
[310005561,1704285020902,-513.69778937,0.00023051,2]
[310005562,1704285020926,-372.3247722,0.00023051,2]
[310005563,1704285020948,-272.38351934,0.00023051,2]
[310005564,1704285020974,-195.24808762,0.00023051,2]
[310005565,1704285020999,-843.00113502,0.00023052,2]
[310005566,1704285021024,-160.08672756,0.00023052,2]
[310005567,1704285021048,-522.07104133,0.00023052,2]
[310005568,1704285021075,-143235.70967295,0.0002306,2]
[310005569,1704285021099,-21163.23,0.00023061,2]
[310005570,1704285021123,-317.68758824,0.0002307,2]
[310005571,1704285021147,-499.99,0.00023072,2]
[310005572,1704285021170,-4632.97,0.00023073,2]
[310005573,1704285021193,-1763.14,0.00023073,2]
[310005574,1704285021217,-5610.57,0.00023073,2]
[310005575,1704285021240,-685.58,0.00023073,2]
[310005576,1704285021264,-1009.23,0.00023073,2]
[310005577,1704285021292,-163.03,0.00023075,2]
[310005578,1704285021315,-494.45,0.00023075,2]
[310005579,1704285021341,-150.3,0.00023128,2]
[310005580,1704285021366,-163.03,0.00023138,2]
[310005581,1704285021691,-163.03,0.00023201,2]
[310005582,1704285021714,-171.89,0.00023223,2]
[310005583,1704285021739,-163.03,0.00023265,2]
[310005584,1704285021764,-150.3,0.00023288,2]
[310005585,1704285021788,-163.03,0.00023328,2]
[310005586,1704285021817,-163.03,0.00023391,2]
[310005587,1704285021841,-150.3,0.00023449,2]
[310005588,1704285021874,-163.03,0.00023454,2]
[310005589,1704285021898,-1364.25,0.00023463,2]
[310005590,1704285021924,-407.18,0.00023487,2]
[310005591,1704285021952,-2032.38,0.00023487,2]
[310005592,1704285021978,-163.03,0.00023517,2]
[310005593,1704285022005,-172.81,0.00023542,2]
[310005594,1704285022032,-163.03,0.0002358,2]
[310005595,1704285022147,155.38164155,0.0002305,2]
[310005596,1704285022216,1094.42498153,0.0002305,2]
[310005597,1704285023686,923.54843946,0.00022961,2]
[310005598,1704285024768,187.63033208,0.0002305,2]
[310005599,1704285027016,1308.18613366,0.0002305,2]
[310005654,1704285032141,-150.3,0.0002361,2]
[310005660,1704285032151,-163.03,0.00023643,2]
[310005665,1704285032162,-965.38656256,0.00023677,2]
[310005669,1704285032171,-163.03,0.00023706,2]
[310005672,1704285032182,-7980.50625911,0.00023729,2]
[310005675,1704285032191,-3441.41894933,0.0002373,2]
[310005678,1704285032203,-851.13637,0.0002373,2]
[310005686,1704285032227,-1201.07707443,0.0002373,2]
[310005693,1704285032258,339.194769,0.00023014,2]
[310005700,1704285032284,-642.5144948,0.0002373,2]
[310005703,1704285032296,-556.53,0.0002373,2]
[310005706,1704285032308,-1103.3,0.0002373,2]
[310005708,1704285032321,-1550.3468,0.0002373,2]
[310005710,1704285032334,-2113.59631144,0.0002373,2]
[310005712,1704285032344,-1917.35,0.00023731,2]
[310005714,1704285032353,-163.03,0.0002377,2]
[310005716,1704285032363,-150.3,0.0002377,2]
[310005717,1704285032373,-159.02,0.00023777,2]
[310005718,1704285032383,-2642.22410023,0.00023799,4]
[310005719,1704285032395,-492.99149758,0.000238,2]
[310005720,1704285032405,-155.0,0.000238,2]
[310005721,1704285032414,-155.53397555,0.000238,2]
[310005722,1704285032424,-212.14384615,0.000238,2]
[310005723,1704285032433,-487.4101649,0.00023803,2]
[310005724,1704285032444,-155.90037049,0.00023803,2]
[310005725,1704285032453,-155.35913906,0.00023803,2]
[310005726,1704285032463,-1149.97813347,0.00023803,2]
[310005727,1704285032474,-1144.46548022,0.00023803,2]
[310005728,1704285032484,-155.6940561,0.00023803,2]
[310005729,1704285032494,-155.21495146,0.00023803,2]
[310005730,1704285032504,-565.46161731,0.00023803,2]
[310005731,1704285032514,-340.10414619,0.00023803,2]
[310005732,1704285032525,-345.74566772,0.00023803,2]
[310005733,1704285032535,-158.57993626,0.00023803,2]
[310005734,1704285032544,-156.49626507,0.00023803,2]
[310005735,1704285032554,-183.08243661,0.00023803,2]
[310005736,1704285032564,-1430.36149518,0.00023803,2]
[310005737,1704285032574,-202.47039203,0.00023803,2]
[310005738,1704285032585,-349.07883612,0.00023803,2]
[310005739,1704285032595,-157.94860015,0.00023803,2]
[310005740,1704285032605,-415.84335606,0.00023803,2]
[310005741,1704285032615,-500.24928798,0.00023803,2]
[310005742,1704285032624,-213.19033962,0.00023803,2]
[310005743,1704285032634,-196.39973243,0.00023803,2]
[310005744,1704285032646,-155.49279269,0.00023803,2]
[310005745,1704285032655,-156.07678681,0.00023803,2]
[310005746,1704285032665,-260.94880288,0.00023803,2]